[Event "CZE-ch Youth G10-G12-G14 2022"]
[Site "Luhacovice"]
[Date "2022.03.15"]
[Round "5.8"]
[White "Tarielasvili Kira"]
[Black "Zadrapova Gabriela"]
[Result "1-0"]
[ECO "C50"]
[WhiteElo "1000"]
[BlackElo "1000"]
[Annotator "NA"]
[PlyCount "32"]
[EventDate "2022.03.12"]
[EventType "swiss"]
[EventCountry "CZE"]
[SourceTitle "playchess.com"]
[Source "ChessBase"]
[SourceQuality "1"]
[TimeControl "40/5400+30:1800+30"]

1. e4 {[%emt 0:00:07]} e5 {[%emt 0:00:10]} 2. Nf3 {[%emt 0:02:37]} Nc6 {[%emt 0:00:30]} 3. Bb5 {[%emt 0:00:30]} Nf6 {[%emt 0:00:30]} 4. Nc3 {[%emt 0:01:40]} Bc5 {[%emt 0:00:01]} 5. O-O {[%emt 0:00:33]} O-O {[%emt 0:01:12]} 6. d3 {[%emt 0:00:31]} a6 {[%emt 0:00:51]} 7. Bc4 {[%emt 0:01:44]} d6 {[%emt 0:00:41]} 8. Bg5 {[%emt 0:00:39]} Be6 {[%emt 0:00:46]} 9. Be3 {[%emt 0:02:26]} Bxe3 {[%emt 0:00:41]} 10. fxe3 {[%emt 0:00:20]} Bxc4 {[%emt 0:00:22]} 11. dxc4 {[%emt 0:00:29]} Ng4 {[%emt 0:01:35]} 12. Nd5 {[%emt 0:02:51]} Qg5 {[%emt 0:01:09]} 13. Nxg5 {[%emt 0:01:42]} h6 {[%emt 0:01:23]} 14. Qxg4 {[%emt 0:03:00]} Nd8 {[%emt 0:00:31]} 15. Ne7+ {[%emt 0:03:35]} Kh8 {[%emt 0:00:01]} 16. Qf5 {[%emt 0:02:35]} g6 {[%emt 0:00:10]} 1-0

[Event "CZE-ch Youth G10-G12-G14 2022"]
[Site "Luhacovice"]
[Date "2022.03.15"]
[Round "5.9"]
[White "Jenikova Sabina"]
[Black "Martikanova Amalie"]
[Result "1-0"]
[ECO "D00"]
[WhiteElo "1076"]
[BlackElo "1245"]
[Annotator "NA"]
[PlyCount "38"]
[EventDate "2022.03.12"]
[EventType "swiss"]
[EventCountry "CZE"]
[SourceTitle "playchess.com"]
[Source "ChessBase"]
[SourceQuality "1"]
[TimeControl "40/5400+30:1800+30"]

1. d4 {[%emt 0:00:07]} d5 {[%emt 0:01:55]} 2. Nc3 {[%emt 0:00:00]} Nf6 {[%emt 0:00:30]} 3. Bf4 {[%emt 0:00:00]} Nc6 {[%emt 0:00:30]} 4. e3 {[%emt 0:00:00]} Bf5 {[%emt 0:00:30]} 5. Nf3 {[%emt 0:00:17]} e6 {[%emt 0:00:30]} 6. Bd3 {[%emt 0:00:30]} Bd6 {[%emt 0:00:30]} 7. Bxf5 {[%emt 0:00:30]} exf5 {[%emt 0:00:30]} 8. O-O {[%emt 0:00:30]} O-O {[%emt 0:40:41]} 9. Re1 {[%emt 0:06:23]} Re8 {[%emt 0:00:30]} 10. Qd3 {[%emt 0:00:30]} Qd7 {[%emt 0:00:30]} 11. Bxd6 {[%emt 0:00:30]} Qxd6 {[%emt 0:00:30]} 12. Qxf5 {[%emt 0:00:30]} Ne4 {[%emt 0:00:30]} 13. Nxe4 {[%emt 0:00:30]} dxe4 {[%emt 0:00:30]} 14. Ng5 {[%emt 0:00:30]} Qg6 {[%emt 0:00:30]} 15. Qxg6 {[%emt 0:00:30]} fxg6 {[%emt 0:00:30]} 16. Rf1 {[%emt 0:00:30]} Ne7 {[%emt 0:00:30]} 17. c3 {[%emt 0:00:30]} c5 {[%emt 0:00:30]} 18. Rfd1 {[%emt 0:00:30]} cxd4 {[%emt 0:00:30]} 19. Rxd4 {[%emt 0:00:30]} h5 {[%emt 0:00:43]} 1-0

[Event "CZE-ch Youth G10-G12-G14 2022"]
[Site "Luhacovice"]
[Date "2022.03.15"]
[Round "5.10"]
[White "Kubalova Nikol"]
[Black "Rudova Jana"]
[Result "0-1"]
[ECO "D02"]
[WhiteElo "1000"]
[BlackElo "1000"]
[Annotator "NA"]
[PlyCount "96"]
[EventDate "2022.03.12"]
[EventType "swiss"]
[EventCountry "CZE"]
[SourceTitle "playchess.com"]
[Source "ChessBase"]
[SourceQuality "1"]
[TimeControl "40/5400+30:1800+30"]

1. d4 {[%emt 0:00:03]} d5 {[%emt 0:00:06]} 2. Bf4 {[%emt 0:00:12]} Nf6 {[%emt 0:01:21]} 3. Nf3 {[%emt 0:00:31]} c6 {[%emt 0:00:30]} 4. e3 {[%emt 0:00:22]} Bf5 {[%emt 0:03:38]} 5. Bd3 {[%emt 0:00:30]} Bxd3 {[%emt 0:00:30]} 6. Qxd3 {[%emt 0:00:30]} e6 {[%emt 0:00:30]} 7. Nbd2 {[%emt 0:00:20]} Bd6 {[%emt 0:07:26]} 8. Bg3 {[%emt 0:00:30]} Qe7 {[%emt 0:00:30]} 9. O-O {[%emt 0:00:25]} O-O {[%emt 0:00:18]} 10. Bxd6 {[%emt 0:01:01]} Qxd6 {[%emt 0:00:46]} 11. Ng5 {[%emt 0:02:12]} h6 {[%emt 0:01:04]} 12. Ngf3 {[%emt 0:01:27]} Nbd7 {[%emt 0:00:52]} 13. g3 {[%emt 0:02:54]} c5 {[%emt 0:03:31]} 14. Nh4 {[%emt 0:02:09]} c4 {[%emt 0:04:54]} 15. Qc3 {[%emt 0:00:31]} Rac8 {[%emt 0:00:30]} 16. Ndf3 {[%emt 0:07:18]} Ne4 {[%emt 0:04:23]} 17. Qa3 {[%emt 0:01:33]} Qxa3 {[%emt 0:02:27]} 18. bxa3 {[%emt 0:00:31]} g5 {[%emt 0:00:30]} 19. Ng2 {[%emt 0:01:02]} g4 {[%emt 0:01:26]} 20. Ne5 {[%emt 0:00:13]} Nxe5 {[%emt 0:02:25]} 21. dxe5 {[%emt 0:00:31]} Nd2 {[%emt 0:00:30]} 22. Rfd1 {[%emt 0:00:34]} Nf3+ {[%emt 0:00:49]} 23. Kf1 {[%emt 0:01:12]} Nxe5 {[%emt 0:01:44]} 24. Rab1 {[%emt 0:03:04]} b6 {[%emt 0:01:52]} 25. Rd4 {[%emt 0:01:11]} h5 {[%emt 0:02:30]} 26. Rbd1 {[%emt 0:00:36]} Nf3 {[%emt 0:02:47]} 27. Rf4 {[%emt 0:00:50]} Nxh2+ {[%emt 0:02:30]} 28. Ke1 {[%emt 0:01:21]} Nf3+ {[%emt 0:02:36]} 29. Kf1 {[%emt 0:07:10]} Kg7 {[%emt 0:00:30]} 30. Nh4 {[%emt 0:00:30]} Nxh4 {[%emt 0:00:30]} 31. gxh4 {[%emt 0:00:30]} Rc5 {[%emt 0:00:30]} 32. Rdd4 {[%emt 0:00:30]} e5 {[%emt 0:00:30]} 33. Rf5 {[%emt 0:07:24]} exd4 {[%emt 0:02:48]} 34. exd4 {[%emt 0:00:30]} Ra5 {[%emt 0:00:30]} 35. Rxh5 {[%emt 0:00:30]} Rxa3 {[%emt 0:00:30]} 36. Rg5+ {[%emt 0:00:30]} Kf6 {[%emt 0:00:30]} 37. Rxg4 {[%emt 0:00:30]} Rxa2 {[%emt 0:00:30]} 38. h5 {[%emt 0:00:30]} Rh8 {[%emt 0:00:30]} 39. Rh4 {[%emt 0:00:30]} Rxc2 {[%emt 0:00:30]} 40. h6 {[%emt 0:00:30]} a5 {[%emt 0:00:30]} 41. h7 {[%emt 0:30:30]} a4 {[%emt 0:30:30]} 42. Kg2 {[%emt 0:00:30]} a3 {[%emt 0:00:30]} 43. Rh6+ {[%emt 0:00:30]} Ke7 {[%emt 0:00:30]} 44. Rh1 {[%emt 0:00:30]} a2 {[%emt 0:00:30]} 45. Rg1 {[%emt 0:00:30]} b5 {[%emt 0:00:30]} 46. Re1+ {[%emt 0:00:30]} Kf8 {[%emt 0:00:30]} 47. Rh1 {[%emt 0:00:30]} Rd2 {[%emt 0:00:30]} 48. Rh6 {[%emt 0:00:30]} Rg8+ {[%emt 0:00:30]} 0-1

[Event "CZE-ch Youth G10-G12-G14 2022"]
[Site "Luhacovice"]
[Date "2022.03.15"]
[Round "5.11"]
[White "Topencikova Ellen"]
[Black "Vlckova Linda"]
[Result "0-1"]
[ECO "C31"]
[WhiteElo "1000"]
[BlackElo "1000"]
[Annotator "NA"]
[PlyCount "56"]
[EventDate "2022.03.12"]
[EventType "swiss"]
[EventCountry "CZE"]
[SourceTitle "playchess.com"]
[Source "ChessBase"]
[SourceQuality "1"]
[TimeControl "40/5400+30:1800+30"]

1. e4 {[%emt 0:00:05]} e5 {[%emt 0:00:10]} 2. f4 {[%emt 0:00:07]} d5 {[%emt 0:00:22]} 3. Nf3 {[%emt 0:00:37]} dxe4 {[%emt 0:00:34]} 4. Nxe5 {[%emt 0:00:17]} Nf6 {[%emt 0:00:06]} 5. Bc4 {[%emt 0:00:42]} Be6 {[%emt 0:00:16]} 6. Bxe6 {[%emt 0:00:23]} fxe6 {[%emt 0:00:14]} 7. O-O {[%emt 0:00:24]} Bc5+ {[%emt 0:01:13]} 8. d4 {[%emt 0:00:22]} Bxd4+ {[%emt 0:00:21]} 9. Kh1 {[%emt 0:00:47]} O-O {[%emt 0:00:20]} 10. Nc3 {[%emt 0:00:46]} e3 {[%emt 0:00:35]} 11. Ng4 {[%emt 0:00:56]} Nxg4 {[%emt 0:01:34]} 12. Qxg4 {[%emt 0:00:13]} Nd7 {[%emt 0:00:16]} 13. Qxe6+ {[%emt 0:01:32]} Rf7 {[%emt 0:00:24]} 14. Bxe3 {[%emt 0:00:55]} Nc5 {[%emt 0:01:38]} 15. Qh3 {[%emt 0:00:37]} Bxe3 {[%emt 0:00:57]} 16. Qxe3 {[%emt 0:00:15]} Re7 {[%emt 0:02:08]} 17. Qxc5 {[%emt 0:00:46]} Rf7 {[%emt 0:01:20]} 18. Nd5 {[%emt 0:01:35]} Rc8 {[%emt 0:01:13]} 19. Rfe1 {[%emt 0:00:39]} h6 {[%emt 0:01:02]} 20. Ne7+ {[%emt 0:00:24]} Kh8 {[%emt 0:00:45]} 21. Nxc8 {[%emt 0:00:15]} Rxf4 {[%emt 0:00:47]} 22. Qe5 {[%emt 0:00:56]} Rf8 {[%emt 0:00:34]} 23. Qe6 {[%emt 0:01:13]} Rf2 {[%emt 0:00:48]} 24. Rad1 {[%emt 0:00:43]} Qg5 {[%emt 0:00:43]} 25. Qe8+ {[%emt 0:01:23]} Kh7 {[%emt 0:00:16]} 26. g3 {[%emt 0:00:33]} Qf5 {[%emt 0:00:29]} 27. Ne7 {[%emt 0:01:13]} Qf3+ {[%emt 0:00:54]} 28. Kg1 {[%emt 0:01:15]} Qg2# {[%emt 0:00:04]} 0-1

[Event "CZE-ch Youth G10-G12-G14 2022"]
[Site "Luhacovice"]
[Date "2022.03.15"]
[Round "5.12"]
[White "Kozusnikova, Daniela"]
[Black "Slivova, Linda"]
[Result "1-0"]
[ECO "D01"]
[WhiteElo "1364"]
[BlackElo "1298"]
[Annotator "NA"]
[PlyCount "107"]
[EventDate "2022.03.12"]
[EventType "swiss"]
[EventCountry "CZE"]
[SourceTitle "playchess.com"]
[Source "ChessBase"]
[SourceQuality "1"]
[TimeControl "40/5400+30:1800+30"]

1. d4 {[%emt 0:00:02]} d5 {[%emt 0:00:07]} 2. Nc3 {[%emt 0:00:10]} Nf6 {[%emt 0:00:11]} 3. Bg5 {[%emt 0:00:55]} e6 {[%emt 0:00:26]} 4. Nf3 {[%emt 0:01:36]} Nbd7 {[%emt 0:00:28]} 5. e3 {[%emt 0:01:33]} Be7 {[%emt 0:00:21]} 6. h3 {[%emt 0:01:27]} O-O {[%emt 0:02:03]} 7. Bd3 {[%emt 0:00:52]} c5 {[%emt 0:02:30]} 8. O-O {[%emt 0:03:59]} a6 {[%emt 0:07:11]} 9. a4 {[%emt 0:03:17]} Qb6 {[%emt 0:03:36]} 10. Qd2 {[%emt 0:05:31]} c4 {[%emt 0:03:09]} 11. Be2 {[%emt 0:03:59]} Bb4 {[%emt 0:00:51]} 12. Qc1 {[%emt 0:05:54]} Bxc3 {[%emt 0:02:00]} 13. bxc3 {[%emt 0:00:03]} Ne4 {[%emt 0:00:48]} 14. Qa3 {[%emt 0:01:49]} Qc6 {[%emt 0:13:59]} 15. a5 {[%emt 0:02:26]} b5 {[%emt 0:03:43]} 16. axb6 {[%emt 0:15:27]} Nxb6 {[%emt 0:10:41]} 17. Ne5 {[%emt 0:02:21]} Qd6 {[%emt 0:01:28]} 18. Qxd6 {[%emt 0:00:34]} Nxd6 {[%emt 0:00:17]} 19. Be7 {[%emt 0:00:25]} Ne4 {[%emt 0:10:50]} 20. Bxf8 {[%emt 0:01:06]} Kxf8 {[%emt 0:00:19]} 21. Ra3 {[%emt 0:02:08]} f6 {[%emt 0:02:14]} 22. Ng4 {[%emt 0:01:06]} Bd7 {[%emt 0:01:01]} 23. f3 {[%emt 0:01:15]} Nd6 {[%emt 0:07:54]} 24. Rb1 {[%emt 0:03:34]} Nb5 {[%emt 0:04:49]} 25. Raa1 {[%emt 0:02:00]} Nc8 {[%emt 0:06:37]} 26. Kf1 {[%emt 0:03:17]} Ncd6 {[%emt 0:01:50]} 27. Kf2 {[%emt 0:03:48]} Ke7 {[%emt 0:01:26]} 28. Bf1 {[%emt 0:01:40]} Nxc3 {[%emt 0:00:18]} 29. Rb2 {[%emt 0:01:01]} Ndb5 {[%emt 0:05:09]} 30. Ke1 {[%emt 0:03:13]} a5 {[%emt 0:02:15]} 31. Nf2 {[%emt 0:02:17]} a4 {[%emt 0:00:51]} 32. Nd1 {[%emt 0:00:49]} Kd6 {[%emt 0:02:15]} 33. Nxc3 {[%emt 0:02:52]} Nxc3 {[%emt 0:00:04]} 34. Kd2 {[%emt 0:00:49]} Nb5 {[%emt 0:00:09]} 35. Rba2 {[%emt 0:01:12]} a3 {[%emt 0:00:17]} 36. e4 {[%emt 0:00:28]} Ra4 {[%emt 0:01:01]} 37. c3 {[%emt 0:03:06]} Bc6 {[%emt 0:01:44]} 38. exd5 {[%emt 0:00:29]} exd5 {[%emt 0:00:49]} 39. Rb1 {[%emt 0:01:08]} Be8 {[%emt 0:01:24]} 40. Be2 {[%emt 0:01:15]} Kc6 {[%emt 0:01:17]} 41. Bd1 {[%emt 0:30:21]} Ra7 {[%emt 0:30:08]} 42. Bc2 {[%emt 0:00:31]} h6 {[%emt 0:00:46]} 43. f4 {[%emt 0:00:18]} Bf7 {[%emt 0:00:53]} 44. f5 {[%emt 0:00:14]} h5 {[%emt 0:00:42]} 45. g4 {[%emt 0:00:26]} Re7 {[%emt 0:01:00]} 46. Ba4 {[%emt 0:00:24]} Rb7 {[%emt 0:00:23]} 47. Bxb5+ {[%emt 0:00:19]} Rxb5 {[%emt 0:00:09]} 48. Rxb5 {[%emt 0:00:04]} Kxb5 {[%emt 0:00:04]} 49. Rxa3 {[%emt 0:00:05]} hxg4 {[%emt 0:00:49]} 50. hxg4 {[%emt 0:00:14]} g6 {[%emt 0:00:36]} 51. Ra7 {[%emt 0:00:15]} Be8 {[%emt 0:01:15]} 52. Re7 {[%emt 0:00:08]} gxf5 {[%emt 0:00:25]} 53. Rxe8 {[%emt 0:00:33]} fxg4 {[%emt 0:00:05]} 54. Rf8 {[%emt 0:00:18]} 1-0

[Event "CZE-ch Youth G10-G12-G14 2022"]
[Site "Luhacovice"]
[Date "2022.03.15"]
[Round "5.13"]
[White "Buchtova, Viktorie"]
[Black "Stehlikova, Vanessa"]
[Result "1-0"]
[ECO "C44"]
[WhiteElo "1464"]
[BlackElo "1039"]
[Annotator "NA"]
[PlyCount "47"]
[EventDate "2022.03.12"]
[EventType "swiss"]
[EventCountry "CZE"]
[SourceTitle "playchess.com"]
[Source "ChessBase"]
[SourceQuality "1"]
[TimeControl "40/5400+30:1800+30"]

1. e4 {[%emt 0:00:03]} e5 {[%emt 0:00:11]} 2. Nf3 {[%emt 0:00:03]} Nc6 {[%emt 0:00:10]} 3. d4 {[%emt 0:00:05]} exd4 {[%emt 0:00:13]} 4. c3 {[%emt 0:00:02]} dxc3 {[%emt 0:01:04]} 5. Nxc3 {[%emt 0:00:04]} Nf6 {[%emt 0:01:18]} 6. e5 {[%emt 0:00:05]} Ng8 {[%emt 0:01:30]} 7. Bc4 {[%emt 0:00:09]} d5 {[%emt 0:06:39]} 8. Qxd5 {[%emt 0:04:52]} Qxd5 {[%emt 0:00:11]} 9. Nxd5 {[%emt 0:00:07]} Kd8 {[%emt 0:03:17]} 10. Bf4 {[%emt 0:02:06]} Nge7 {[%emt 0:04:58]} 11. Ng5 {[%emt 0:01:27]} Be6 {[%emt 0:37:59]} 12. Nxe6+ {[%emt 0:04:51]} fxe6 {[%emt 0:00:12]} 13. Nxe7 {[%emt 0:00:25]} Kxe7 {[%emt 0:00:14]} 14. O-O-O {[%emt 0:00:18]} g6 {[%emt 0:02:34]} 15. Bg5+ {[%emt 0:00:27]} Ke8 {[%emt 0:01:22]} 16. Bf6 {[%emt 0:00:19]} Bh6+ {[%emt 0:01:45]} 17. Kb1 {[%emt 0:00:22]} Rf8 {[%emt 0:18:03]} 18. Bxe6 {[%emt 0:00:28]} Nd8 {[%emt 0:06:51]} 19. Bd7+ {[%emt 0:03:17]} Kf7 {[%emt 0:02:09]} 20. Bb5 {[%emt 0:01:04]} c6 {[%emt 0:06:11]} 21. Bc4+ {[%emt 0:00:00]} Ke8 {[%emt 0:01:15]} 22. g4 {[%emt 0:00:01]} g5 {[%emt 0:00:54]} 23. h4 {[%emt 0:00:20]} gxh4 {[%emt 0:00:21]} 24. Rxh4 {[%emt 0:00:05]} 1-0

[Event "CZE-ch Youth G10-G12-G14 2022"]
[Site "Luhacovice"]
[Date "2022.03.15"]
[Round "5.14"]
[White "Kammova, Katerina"]
[Black "Markina, Sofiia"]
[Result "1-0"]
[ECO "B50"]
[WhiteElo "1376"]
[BlackElo "1367"]
[Annotator "NA"]
[PlyCount "39"]
[EventDate "2022.03.12"]
[EventType "swiss"]
[EventCountry "CZE"]
[SourceTitle "playchess.com"]
[Source "ChessBase"]
[SourceQuality "1"]
[TimeControl "40/5400+30:1800+30"]

1. e4 {[%emt 0:00:05]} c5 {[%emt 0:00:04]} 2. Nf3 {[%emt 0:00:06]} d6 {[%emt 0:00:05]} 3. c3 {[%emt 0:00:20]} Nc6 {[%emt 0:00:46]} 4. d4 {[%emt 0:01:08]} cxd4 {[%emt 0:00:16]} 5. cxd4 {[%emt 0:00:24]} e6 {[%emt 0:00:24]} 6. Nc3 {[%emt 0:01:16]} Nf6 {[%emt 0:04:02]} 7. Be2 {[%emt 0:02:10]} Be7 {[%emt 0:01:22]} 8. O-O {[%emt 0:01:01]} O-O {[%emt 0:00:15]} 9. Qc2 {[%emt 0:07:54]} b6 {[%emt 0:19:53]} 10. Rd1 {[%emt 0:07:00]} d5 {[%emt 0:24:10]} 11. e5 {[%emt 0:08:18]} Nd7 {[%emt 0:10:04]} 12. Nxd5 {[%emt 0:15:01]} Bb7 {[%emt 0:03:47]} 13. Nc3 {[%emt 0:04:04]} Rc8 {[%emt 0:14:21]} 14. Bf4 {[%emt 0:05:15]} Re8 {[%emt 0:00:35]} 15. Bg3 {[%emt 0:01:19]} Nf8 {[%emt 0:02:42]} 16. a3 {[%emt 0:04:11]} Ng6 {[%emt 0:01:10]} 17. d5 {[%emt 0:06:32]} Nb8 {[%emt 0:12:39]} 18. dxe6 {[%emt 0:02:38]} Bd5 {[%emt 0:00:07]} 19. exf7+ {[%emt 0:00:48]} Kxf7 {[%emt 0:00:14]} 20. Qf5+ {[%emt 0:01:11]} 1-0

[Event "CZE-ch Youth G10-G12-G14 2022"]
[Site "Luhacovice"]
[Date "2022.03.15"]
[Round "5.15"]
[White "Horkova, Tereza"]
[Black "Stara, Zuzana"]
[Result "1/2-1/2"]
[ECO "B22"]
[WhiteElo "1375"]
[BlackElo "1322"]
[Annotator "NA"]
[PlyCount "62"]
[EventDate "2022.03.12"]
[EventType "swiss"]
[EventCountry "CZE"]
[SourceTitle "playchess.com"]
[Source "ChessBase"]
[SourceQuality "1"]
[TimeControl "40/5400+30:1800+30"]

1. e4 {[%emt 0:00:02]} c5 {[%emt 0:00:16]} 2. c3 {[%emt 0:00:05]} Nf6 {[%emt 0:00:23]} 3. e5 {[%emt 0:00:20]} Nd5 {[%emt 0:00:17]} 4. d4 {[%emt 0:00:24]} cxd4 {[%emt 0:00:30]} 5. cxd4 {[%emt 0:00:10]} e6 {[%emt 0:01:44]} 6. Nf3 {[%emt 0:04:27]} Nc6 {[%emt 0:02:03]} 7. Bc4 {[%emt 0:04:37]} Nb6 {[%emt 0:03:47]} 8. Bb3 {[%emt 0:00:27]} d5 {[%emt 0:08:29]} 9. exd6 {[%emt 0:10:36]} Bxd6 {[%emt 0:00:17]} 10. O-O {[%emt 0:00:20]} O-O {[%emt 0:00:53]} 11. Nc3 {[%emt 0:01:59]} Ne7 {[%emt 0:14:53]} 12. Re1 {[%emt 0:06:23]} Nf5 {[%emt 0:06:12]} 13. Qd3 {[%emt 0:09:50]} Bd7 {[%emt 0:03:34]} 14. Bc2 {[%emt 0:03:52]} Bc6 {[%emt 0:25:35]} 15. Ne4 {[%emt 0:25:48]} Nd5 {[%emt 0:07:49]} 16. a3 {[%emt 0:02:39]} Bf4 {[%emt 0:06:43]} 17. Bxf4 {[%emt 0:09:34]} Nxf4 {[%emt 0:00:15]} 18. Qd2 {[%emt 0:00:55]} Ng6 {[%emt 0:00:42]} 19. Rac1 {[%emt 0:02:20]} Rc8 {[%emt 0:00:40]} 20. Qb4 {[%emt 0:02:56]} Qb6 {[%emt 0:01:49]} 21. Qxb6 {[%emt 0:00:59]} axb6 {[%emt 0:00:06]} 22. Ned2 {[%emt 0:01:34]} Nfh4 {[%emt 0:02:31]} 23. Nxh4 {[%emt 0:01:23]} Nxh4 {[%emt 0:00:27]} 24. Be4 {[%emt 0:01:00]} Rfd8 {[%emt 0:01:46]} 25. Bxc6 {[%emt 0:00:59]} bxc6 {[%emt 0:00:42]} 26. Nb3 {[%emt 0:00:36]} Nf5 {[%emt 0:00:19]} 27. Red1 {[%emt 0:00:31]} Rd6 {[%emt 0:01:17]} 28. Rd2 {[%emt 0:03:35]} Rcd8 {[%emt 0:00:39]} 29. Rcd1 {[%emt 0:01:11]} h6 {[%emt 0:01:47]} 30. g3 {[%emt 0:00:37]} Kf8 {[%emt 0:00:34]} 31. Kg2 {[%emt 0:00:31]} Ne7 {[%emt 0:00:42]} 1/2-1/2

[Event "CZE-ch Youth G10-G12-G14 2022"]
[Site "Luhacovice"]
[Date "2022.03.15"]
[Round "5.16"]
[White "Kubatova Ema"]
[Black "Barteckova, Nikol"]
[Result "1/2-1/2"]
[ECO "B07"]
[WhiteElo "1183"]
[BlackElo "1140"]
[Annotator "NA"]
[PlyCount "172"]
[EventDate "2022.03.12"]
[EventType "swiss"]
[EventCountry "CZE"]
[SourceTitle "playchess.com"]
[Source "ChessBase"]
[SourceQuality "1"]
[TimeControl "40/5400+30:1800+30"]

1. e4 {[%emt 0:00:06]} c5 {[%emt 0:00:05]} 2. c3 {[%emt 0:00:21]} d6 {[%emt 0:00:21]} 3. d4 {[%emt 0:00:55]} Nf6 {[%emt 0:00:37]} 4. Bd3 {[%emt 0:03:16]} g6 {[%emt 0:03:01]} 5. Nf3 {[%emt 0:03:31]} Bg7 {[%emt 0:02:53]} 6. O-O {[%emt 0:03:39]} O-O {[%emt 0:01:42]} 7. Be3 {[%emt 0:04:58]} Nbd7 {[%emt 0:02:24]} 8. Nbd2 {[%emt 0:06:30]} Qc7 {[%emt 0:03:18]} 9. Rc1 {[%emt 0:06:41]} Ng4 {[%emt 0:01:43]} 10. Bf4 {[%emt 0:05:55]} Qd8 {[%emt 0:01:46]} 11. h3 {[%emt 0:02:06]} Ngf6 {[%emt 0:00:40]} 12. Re1 {[%emt 0:01:37]} Nb6 {[%emt 0:01:20]} 13. Nc4 {[%emt 0:02:07]} Bd7 {[%emt 0:03:02]} 14. Qd2 {[%emt 0:05:25]} Rc8 {[%emt 0:02:53]} 15. Qe2 {[%emt 0:09:45]} Nxc4 {[%emt 0:01:23]} 16. Bxc4 {[%emt 0:00:14]} Bc6 {[%emt 0:00:17]} 17. Bd3 {[%emt 0:00:28]} Re8 {[%emt 0:00:40]} 18. Qd2 {[%emt 0:00:40]} a6 {[%emt 0:00:26]} 19. Bc2 {[%emt 0:11:22]} Nh5 {[%emt 0:00:49]} 20. Be3 {[%emt 0:01:12]} b6 {[%emt 0:00:43]} 21. Rcd1 {[%emt 0:06:59]} Qc7 {[%emt 0:01:53]} 22. Bd3 {[%emt 0:08:55]} Bb7 {[%emt 0:02:22]} 23. b3 {[%emt 0:00:53]} Nf6 {[%emt 0:00:17]} 24. Bf4 {[%emt 0:00:16]} Nh5 {[%emt 0:00:32]} 25. Be3 {[%emt 0:00:11]} Rcd8 {[%emt 0:02:11]} 26. Qc2 {[%emt 0:01:57]} Qb8 {[%emt 0:00:55]} 27. Qb1 {[%emt 0:02:08]} Qc7 {[%emt 0:02:13]} 28. Qc2 {[%emt 0:01:03]} Rc8 {[%emt 0:00:22]} 29. Rc1 {[%emt 0:01:15]} Qd7 {[%emt 0:00:52]} 30. Qd1 {[%emt 0:01:41]} Red8 {[%emt 0:00:42]} 31. Qe2 {[%emt 0:01:35]} b5 {[%emt 0:00:49]} 32. Red1 {[%emt 0:00:54]} Qe8 {[%emt 0:00:31]} 33. a3 {[%emt 0:01:14]} Nf6 {[%emt 0:10:47]} 34. Bf4 {[%emt 0:00:16]} Qc6 {[%emt 0:00:18]} 35. Re1 {[%emt 0:00:29]} Qb6 {[%emt 0:02:45]} 36. Qb2 {[%emt 0:02:19]} a5 {[%emt 0:01:51]} 37. Bb1 {[%emt 0:00:44]} Ba6 {[%emt 0:02:31]} 38. e5 {[%emt 0:01:50]} Nd5 {[%emt 0:00:32]} 39. Bg3 {[%emt 0:00:37]} Re8 {[%emt 0:00:30]} 40. exd6 {[%emt 0:01:06]} exd6 {[%emt 0:00:14]} 41. Qd2 {[%emt 0:30:43]} Qc6 {[%emt 0:30:55]} 42. Be4 {[%emt 0:00:43]} f5 {[%emt 0:01:43]} 43. Bxd5+ {[%emt 0:00:59]} Qxd5 {[%emt 0:00:42]} 44. Rxe8+ {[%emt 0:01:01]} Rxe8 {[%emt 0:00:10]} 45. dxc5 {[%emt 0:00:18]} Qxd2 {[%emt 0:00:24]} 46. Nxd2 {[%emt 0:00:12]} dxc5 {[%emt 0:00:13]} 47. Nf3 {[%emt 0:01:15]} h6 {[%emt 0:01:31]} 48. Bf4 {[%emt 0:00:51]} g5 {[%emt 0:00:21]} 49. Be3 {[%emt 0:00:12]} Rc8 {[%emt 0:00:43]} 50. Nh2 {[%emt 0:00:59]} Bb7 {[%emt 0:00:24]} 51. c4 {[%emt 0:00:30]} b4 {[%emt 0:00:30]} 52. a4 {[%emt 0:00:31]} Kf7 {[%emt 0:01:20]} 53. Kf1 {[%emt 0:00:11]} Ke6 {[%emt 0:00:22]} 54. f3 {[%emt 0:00:25]} Bc3 {[%emt 0:00:40]} 55. Ke2 {[%emt 0:00:32]} Kd6 {[%emt 0:00:13]} 56. Bd2 {[%emt 0:00:30]} Re8+ {[%emt 0:00:23]} 57. Kd3 {[%emt 0:00:25]} Bd4 {[%emt 0:01:05]} 58. Nf1 {[%emt 0:00:17]} f4 {[%emt 0:00:46]} 59. Re1 {[%emt 0:01:02]} Rxe1 {[%emt 0:00:57]} 60. Bxe1 {[%emt 0:00:06]} h5 {[%emt 0:01:42]} 61. Nh2 {[%emt 0:00:48]} Ke5 {[%emt 0:00:39]} 62. Bd2 {[%emt 0:00:49]} Bc8 {[%emt 0:00:41]} 63. Ke2 {[%emt 0:00:32]} Bf5 {[%emt 0:00:15]} 64. Kd1 {[%emt 0:00:25]} Be3 {[%emt 0:00:47]} 65. Be1 {[%emt 0:00:29]} Bd3 {[%emt 0:00:52]} 66. g3 {[%emt 0:00:57]} Bg1 {[%emt 0:00:35]} 67. Ng4+ {[%emt 0:00:31]} hxg4 {[%emt 0:00:14]} 68. hxg4 {[%emt 0:00:07]} Bh2 {[%emt 0:00:35]} 69. gxf4+ {[%emt 0:00:15]} Bxf4 {[%emt 0:00:21]} 70. Bf2 {[%emt 0:00:25]} Kd6 {[%emt 0:00:31]} 71. Bg1 {[%emt 0:00:24]} Kc6 {[%emt 0:01:49]} 72. Bf2 {[%emt 0:00:31]} Kd6 {[%emt 0:00:33]} 73. Bg1 {[%emt 0:00:12]} Be5 {[%emt 0:00:06]} 74. Bf2 {[%emt 0:00:20]} Bd4 {[%emt 0:00:09]} 75. Bg3+ {[%emt 0:00:24]} Ke6 {[%emt 0:00:22]} 76. Bh2 {[%emt 0:00:31]} Be5 {[%emt 0:03:38]} 77. Bg1 {[%emt 0:00:29]} Kd6 {[%emt 0:00:12]} 78. Bf2 {[%emt 0:00:13]} Bf4 {[%emt 0:02:39]} 79. Bg1 {[%emt 0:00:23]} Bg3 {[%emt 0:00:19]} 80. Be3 {[%emt 0:00:29]} Bf4 {[%emt 0:00:35]} 81. Bg1 {[%emt 0:00:17]} Bb1 {[%emt 0:00:21]} 82. Bf2 {[%emt 0:00:26]} Bh7 {[%emt 0:00:58]} 83. Bg1 {[%emt 0:00:21]} Bd3 {[%emt 0:00:25]} 84. Bf2 {[%emt 0:00:11]} Be5 {[%emt 0:02:04]} 85. Bg1 {[%emt 0:00:21]} Bd4 {[%emt 0:00:17]} 86. Bh2+ {[%emt 0:00:13]} Ke6 {[%emt 0:00:18]} 1/2-1/2